lending/lending_fUSD_20260209
["ID","MTS","AMOUNT","RATE_DAILY","PERIOD"]
[404825723,1770600672062,-500.0,0.00044356,120]
[404825724,1770600672072,-514.69827595,0.00044356,120]
[404825725,1770600672086,-217.01172405,0.00044356,120]
[404825726,1770600672097,-500.0,0.00044356,120]
[404825727,1770600672107,-731.71,0.00044356,120]
[404825728,1770600672117,-341.07955991,0.00044356,120]
[404825729,1770600672126,-731.71,0.00044356,120]
[404825730,1770600672137,-731.8082,0.00044356,120]
[404825731,1770600672147,-511.44812221,0.00044356,120]
[404825732,1770600672156,-503.56162518,0.00044356,120]
[404825733,1770600672166,-502.79189399,0.00044356,120]
[404825734,1770600672176,-217.146381,0.00044356,120]
[404825735,1770600672186,-519.46367502,0.00044356,120]
[404825736,1770600672196,-500.0,0.00044356,120]
[404825737,1770600672205,-500.0,0.00044356,120]
[404825738,1770600672214,-500.0,0.00044356,120]
[404825739,1770600672223,-500.21003028,0.00044356,120]
[404825740,1770600672235,-210.24231188,0.00044356,120]
[404825741,1770600672245,-500.0,0.00044356,120]
[404825742,1770600672255,-500.0,0.00044356,120]
[404825743,1770600672265,-500.0,0.00044356,120]
[404825744,1770600672275,-500.0,0.00044356,120]
[404825745,1770600672284,-311.34991378,0.00044356,120]
[404825746,1770600672294,-500.0,0.00044356,120]
[404825747,1770600672303,-277.45380559,0.00044366,120]
[404825748,1770600672313,-2112.68772881,0.00044408,10]
[404825749,1770600672327,-6023.04433623,0.00044408,10]
[404825750,1770600672340,-2357.61,0.00044408,10]
[404825751,1770600672522,-5642.70196642,0.00044408,10]
[404825752,1770600672580,-536.63160544,0.00044356,120]
[404825753,1770600672590,-500.0,0.00044356,120]
[404825754,1770600672600,-500.0,0.00044356,120]
[404825755,1770600672610,-616.07558167,0.00044356,120]
[404825756,1770600672620,-500.0,0.00044356,120]
[404825757,1770600672630,-500.0,0.00044356,120]
[404825758,1770600672640,-544.22020742,0.00044356,120]
[404825759,1770600672650,-503.84188783,0.00044356,120]
[404825760,1770600672660,-9367.18785245,0.00044408,10]
[404825761,1770600672672,-504.41788599,0.00044408,10]
[404825762,1770600672683,-1014.88,0.00044408,10]
[404825763,1770600672704,-500.0,0.00044356,2]
[404825764,1770600672714,-5.01796416,0.00044408,10]
[404825765,1770600672726,-26147.87556425,0.00044408,10]
[404825766,1770600672742,-3919.59072993,0.00044408,10]
[404825767,1770600673142,269.12130463,0.00017999,2]
[404825768,1770600673756,500.0,0.00017999,2]
[404825769,1770600673788,500.0,0.00017999,2]
[404825770,1770600673816,300.68004681,0.00017999,2]
[404825771,1770600674320,196.72162688,0.00017999,2]
[404825772,1770600674453,250.0,0.0001795,2]
[404825773,1770600738867,730.0928442,0.000356,120]
[404825774,1770600831377,299.99,0.00032616,30]
[404825775,1770600913422,536.46622777,0.00017999,2]
[404825776,1770600916497,500.0,0.00017999,2]
[404825777,1770600916536,500.0,0.00017999,2]
[404825778,1770600916581,500.0,0.00017999,2]
[404825779,1770600916615,500.0,0.00017999,2]
[404825780,1770600916645,500.0,0.00017999,2]
[404825781,1770600916678,500.0,0.00017999,2]
[404825782,1770600916714,500.0,0.00017999,2]
[404825783,1770600916743,500.0,0.00017999,2]
[404825784,1770600916777,500.0,0.00017999,2]
[404825785,1770600916809,500.0,0.00017999,2]
[404825786,1770600916844,500.0,0.00017999,2]
[404825787,1770600916881,151.44821266,0.00017999,2]
[404825788,1770600916917,500.0,0.00017999,2]
[404825789,1770600921069,500.0,0.00017999,2]
[404825790,1770600921309,642.18068599,0.00017999,2]
[404825791,1770600938898,-200.36470103,0.00019082,2]
[404825792,1770600997008,206.11,0.00035616,30]
[404825793,1770601012500,203.0,0.00035616,30]
[404825794,1770601046374,487.87229897,0.00017999,2]
[404825795,1770601046400,27.15680389,0.00017999,2]
[404825796,1770601053928,250.0,0.00015,2]
[404825797,1770601060126,222.84319611,0.00017999,2]
[404825798,1770601060157,277.15680389,0.00017999,2]
[404825799,1770601060356,48.39882502,0.00017999,2]
[404825800,1770601060382,174.44437109,0.00017999,2]
[404825801,1770601060413,157.61677908,0.00017999,2]
[404825802,1770601060439,128.28526242,0.00017999,2]
[404825803,1770601077371,500.0,0.00017999,2]
[404825804,1770601077626,509.29354384,0.00017999,2]
[404825805,1770601079651,349.0,0.00035616,120]
[404825809,1770601084337,500.0,0.00017999,2]
[404825810,1770601084589,501.22606665,0.00017999,2]
[404825814,1770601118364,500.0,0.00017999,2]
[404825815,1770601118601,505.35793479,0.00017999,2]
[404825818,1770601134892,499.76265482,0.00017999,2]
[404825819,1770601134918,0.23734518,0.00017999,2]
[404825820,1770601135028,505.33010903,0.00017999,2]
[404825821,1770601137583,500.0,0.00017999,2]
[404825822,1770601137835,502.70550867,0.00017999,2]
[404825825,1770601165239,500.0,0.00017999,2]
[404825826,1770601165486,85.96984273,0.00017999,2]
[404825827,1770601165511,419.16544585,0.00017999,2]
[404825828,1770601197441,55.29782746,0.00017999,2]
[404825829,1770601202569,-444.70217254,0.00017999,2]
[404825830,1770601202600,-510.97736592,0.00017999,2]
[404825831,1770601260114,524.50136006,0.00017999,2]
[404825832,1770601292156,170.3708039,0.00035616,42]
[404825833,1770601292208,1617.838,0.00035616,42]
[404825835,1770601400384,500.0,0.00017999,2]
[404825836,1770601400724,506.20299394,0.00017999,2]
[404825839,1770601605133,-327.0,0.00020182,2]
[404825840,1770601605157,-85.99353041,0.00020244,2]
[404825866,1770601831639,-189.0,0.000202,8]
[404825867,1770601831649,-214.00646959,0.00020244,2]
[404825868,1770601831660,-250.0,0.00020274,2]
[404825869,1770601831671,-205.45776283,0.00020329,2]
[404825870,1770601831682,-201.12463782,0.00020657,2]
[404825871,1770601831694,-98.87536218,0.00020657,2]
[404825872,1770601831704,-302.53065064,0.00020657,2]
[404825873,1770601831714,-2000.0,0.00021,2]
[404825874,1770601831728,-204.63140788,0.00021394,2]
[404825875,1770601831739,-205.45776283,0.00021518,2]
[404825876,1770601831748,-572.35,0.000217,2]
[404825877,1770601831759,-300.0,0.000222,2]
[404825878,1770601831768,-195.0,0.000222,2]
[404825879,1770601831778,-250.0,0.0002222,2]
[404825880,1770601831788,-250.0,0.00022268,2]
[404825881,1770601831798,-205.45776283,0.00022707,2]
[404825882,1770601831809,-205.45776283,0.00023897,2]
[404825883,1770601831820,-1200.0,0.00024644,2]
[404825884,1770601831831,-1074.82183506,0.00024645,2]
[404825885,1770601831840,-205.45776283,0.00026275,2]
[404825886,1770601831849,-250.42180982,0.00026691,2]
[404825887,1770601831866,-1230.0,0.00026829,2]
[404825888,1770601831884,-204.63140787,0.00027297,2]
[404825889,1770601831894,-300.0,0.00027386,2]
[404825890,1770601831904,-9051.28467807,0.00027387,2]
[404825891,1770601831914,-155.0,0.00027396,2]
[404825892,1770601831924,-377.57,0.00027397,2]
[404825893,1770601831934,-5278.04,0.00027397,2]
[404825894,1770601831945,-23588.34,0.00027397,10]
[404825895,1770601831957,-150.99,0.00027397,2]
[404825896,1770601831968,-9999.99,0.00027397,2]
[404825897,1770601831978,-999.99,0.00027397,2]
[404825898,1770601831989,-9999.99,0.00027397,2]
[404825899,1770601831999,-1229.19,0.00027397,2]
[404825900,1770601832008,-1623.01,0.00027397,2]
[404825901,1770601832019,-9999.99,0.00027397,2]
[404825902,1770601832029,-9999.99,0.00027397,2]
[404825903,1770601832038,-205.45776283,0.00027464,2]
[404825904,1770601832050,-205.45776283,0.00028654,2]
[404825905,1770601832287,-205.45776283,0.00029843,2]
[404825906,1770601832297,-205.45776283,0.00031032,2]
[404825907,1770601832307,-500.0,0.00031423,2]
[404825908,1770601832316,-18868.43,0.00032157,2]
[404825909,1770601832326,-205.45776283,0.00032222,2]
[404825910,1770601832335,-11197.19793298,0.00032566,2]
[404825911,1770601832345,-13444.1,0.00032587,2]
[404825912,1770601832354,-532.0,0.00032616,2]
[404825913,1770601832364,-1000.0,0.00033286,20]
[404825914,1770601832374,-13111.48,0.00033304,2]
[404825915,1770601832383,-205.45776283,0.00033411,2]
[404825916,1770601832393,-11497.82,0.00033761,2]
[404825917,1770601832402,-205.45776283,0.000346,2]
[404825918,1770601832412,-150.0,0.00034904,2]
[404825919,1770601832421,-10308.81,0.00035355,2]
[404825920,1770601832431,-205.45776283,0.0003579,2]
[404825921,1770601832440,-150.0,0.00036649,2]
[404825922,1770601832449,-557.5,0.00036775,2]
[404825923,1770601832459,-159.57,0.00036812,10]
[404825924,1770601832469,-223.0164876,0.00037134,60]
[404825925,1770601832478,-161.62,0.00037146,2]
[404825926,1770601832489,-171.7421392,0.000372,120]
[404825927,1770601832499,-161.62,0.0003729,2]
[404825928,1770601832508,-161.62,0.00037435,2]
[404825929,1770601832518,-174.59,0.00037578,120]
[404825930,1770601832527,-161.62,0.00037579,2]
[404825931,1770601832536,-161.62,0.00037724,2]
[404825932,1770601832546,-161.62,0.00037868,2]
[404825933,1770601832555,-161.62,0.00038013,2]
[404825934,1770601832564,-161.62,0.00038157,2]
[404825935,1770601832576,-205.45776283,0.00038168,2]
[404825936,1770601832585,-161.62,0.00038302,2]
[404825937,1770601832594,-161.62,0.00038446,2]
[404825938,1770601832604,-150.0,0.00038482,2]
[404825939,1770601832614,-21431.3,0.0003882,2]
[404825940,1770601832624,-150.0,0.00038842,2]
[404825941,1770601832633,-150.0,0.00038897,2]
[404825942,1770601832643,-201.89069271,0.00038952,2]
[404825943,1770601832652,-166.66,0.00039269,30]
[404825944,1770601832662,-205.45776283,0.00039358,2]
[404825945,1770601832671,-4972.46,0.00039385,2]
[404825946,1770601832680,-217.04487695,0.00039998,31]
[404825947,1770601832689,-280.55412175,0.00039998,31]
[404825948,1770601832699,-500.0,0.00039998,31]
[404825949,1770601832708,-325.32148607,0.00039998,15]
[404825950,1770601832719,-500.0,0.00039998,31]
[404825951,1770601832729,-594.48135214,0.00039998,7]
[404825952,1770601832739,-500.0,0.00039998,31]
[404825953,1770601832749,-500.0,0.00039998,31]
[404825954,1770601832758,-500.0,0.00039998,31]
[404825955,1770601832767,-500.0,0.00039998,31]
[404825956,1770601832776,-500.0,0.00039998,31]
[404825957,1770601832786,-500.0,0.00039998,31]
[404825958,1770601832797,-400.46016904,0.00039998,31]
[404825959,1770601832806,-500.0,0.00039998,31]
[404825960,1770601832815,-500.0,0.00039998,31]
[404825961,1770601832824,-500.0,0.00039998,31]
[404825962,1770601832834,-500.0,0.00039998,31]
[404825963,1770601832843,-500.0,0.00039998,31]
[404825964,1770601832852,-500.0,0.00039998,31]
[404825965,1770601832861,-500.0,0.00039998,31]
[404825966,1770601832870,-500.0,0.00039998,31]
[404825967,1770601832879,-500.0,0.00039998,31]
[404825968,1770601832889,-500.0,0.00039998,31]
[404825969,1770601832898,-500.0,0.00039998,31]
[404825970,1770601832907,-500.0,0.00039998,31]
[404825971,1770601832917,-500.0,0.00039998,31]
[404825972,1770601832926,-500.0,0.00039998,31]
[404825973,1770601832935,-500.0,0.00039998,31]
[404825974,1770601832944,-500.0,0.00039998,31]
[404825975,1770601832953,-500.0,0.00039998,31]
[404825976,1770601832965,-500.0,0.00039998,31]
[404825977,1770601832974,-500.0,0.00039998,31]
[404825978,1770601832985,-500.0,0.00039998,31]
[404825979,1770601832994,-500.0,0.00039998,31]
[404825980,1770601833003,-500.0,0.00039998,31]
[404825981,1770601833012,-500.0,0.00039998,31]
[404825982,1770601833022,-500.0,0.00039998,31]
[404825983,1770601833032,-500.0,0.00039998,31]
[404825984,1770601833042,-500.0,0.00039998,31]
[404825985,1770601833051,-500.0,0.00039998,31]
[404825986,1770601833060,-500.0,0.00039998,31]
[404825987,1770601833070,-500.0,0.00039998,31]
[404825988,1770601833079,-500.0,0.00039998,31]
[404825989,1770601833088,-500.0,0.00039998,31]
[404825990,1770601833097,-500.0,0.00039998,31]
[404825991,1770601833106,-500.0,0.00039998,31]
[404825992,1770601833116,-500.0,0.00039998,31]
[404825993,1770601833125,-500.0,0.00039998,31]
[404825994,1770601833135,-500.0,0.00039998,31]
[404825995,1770601833144,-500.0,0.00039998,31]
[404825996,1770601833153,-500.0,0.00039998,31]
[404825997,1770601833162,-500.0,0.00039998,31]
[404825998,1770601833172,-500.0,0.00039998,31]
[404825999,1770601833181,-500.0,0.00039998,31]
[404826000,1770601833191,-301.60938473,0.00039998,31]
[404826001,1770601833199,-500.0,0.00039998,31]
[404826002,1770601833209,-500.0,0.00039998,31]
[404826003,1770601833219,-500.0,0.00039998,31]
[404826004,1770601833228,-500.0,0.00039998,31]
[404826005,1770601833239,-500.0,0.00039998,31]
[404826006,1770601833248,-500.0,0.00039998,31]
[404826007,1770601833257,-500.0,0.00039998,31]
[404826008,1770601833266,-500.0,0.00039998,31]
[404826009,1770601833275,-500.0,0.00039998,31]
[404826010,1770601833284,-500.0,0.00039998,31]
[404826011,1770601833293,-500.0,0.00039998,31]
[404826012,1770601833302,-500.0,0.00039998,31]
[404826013,1770601833311,-500.0,0.00039998,31]
[404826014,1770601833320,-500.0,0.00039998,31]
[404826015,1770601833330,-500.0,0.00039998,31]
[404826016,1770601833339,-500.0,0.00039998,31]
[404826017,1770601833349,-500.0,0.00039998,31]
[404826018,1770601833359,-500.0,0.00039998,31]
[404826019,1770601833368,-500.0,0.00039998,31]
[404826020,1770601833377,-500.0,0.00039998,31]
[404826021,1770601833387,-500.0,0.00039998,31]
[404826022,1770601833396,-500.0,0.00039998,31]
[404826023,1770601833405,-500.0,0.00039998,31]
[404826024,1770601833414,-500.0,0.00039998,31]
[404826025,1770601833423,-500.0,0.00039998,31]
[404826026,1770601833432,-500.0,0.00039998,31]
[404826027,1770601833442,-500.0,0.00039998,31]
[404826028,1770601833451,-500.0,0.00039998,31]
[404826029,1770601833460,-500.0,0.00039998,31]
[404826030,1770601833469,-500.0,0.00039998,31]
[404826031,1770601833478,-500.0,0.00039998,31]
[404826032,1770601833489,-500.0,0.00039998,31]
[404826033,1770601833499,-500.0,0.00039998,31]
[404826034,1770601833508,-500.0,0.00039998,31]
[404826035,1770601833518,-500.0,0.00039998,31]
[404826036,1770601833528,-632.39293742,0.00039998,31]
[404826037,1770601833537,-500.0,0.00039998,31]
[404826038,1770601833546,-500.0,0.00039998,31]
[404826039,1770601833556,-500.0,0.00039998,31]
[404826040,1770601833566,-500.0,0.00039998,31]
[404826041,1770601833575,-535.99215269,0.00039998,31]
[404826042,1770601833584,-1035.99215269,0.00039998,31]
[404826043,1770601833593,-823.84867429,0.0004,120]
[404826044,1770601833602,-500.77450364,0.0004,5]
[404826045,1770601833612,-70000.0,0.0004,40]
[404826046,1770601833621,-162.0,0.0004,8]
[404826047,1770601833630,-152.0,0.0004,120]
[404826048,1770601833640,-271.41,0.0004,120]
[404826049,1770601833650,-500.0,0.0004,5]
[404826050,1770601833659,-500.0,0.0004,5]
[404826051,1770601833668,-152.0,0.0004,120]
[404826052,1770601833677,-501.76952692,0.0004,5]
[404826053,1770601833687,-500.0,0.0004,5]
[404826054,1770601833696,-500.0,0.0004,2]
[404826055,1770601833706,-500.0,0.0004,5]
[404826056,1770601833716,-503.13060271,0.0004,5]
[404826057,1770601833727,-305.46831933,0.0004,5]
[404826058,1770601833746,-166.66,0.00040095,30]
[404826059,1770601833757,-8214.38,0.0004029,2]
[404826060,1770601833766,-10838.19,0.0004029,30]
[404826061,1770601833775,-25989.96,0.0004029,2]
[404826062,1770601833785,-150.0,0.00040406,2]
[404826063,1770601833795,-205.45776283,0.00040547,2]
[404826064,1770601833804,-504.45435492,0.00040548,5]
[404826065,1770601833814,-1000.0,0.00040548,5]
[404826066,1770601833824,-1001.11988225,0.00040548,5]
[404826067,1770601833834,-331.32557222,0.00040548,2]
[404826068,1770601833843,-504.16441287,0.00040548,5]
[404826069,1770601833853,-300.0,0.00040548,2]
[404826070,1770601833862,-166.66,0.00040922,30]
[404826071,1770601833872,-2000.0,0.00041,2]
[404826072,1770601833882,-152.0,0.00041,120]
[404826073,1770601833891,-641.5,0.00041076,60]
[404826074,1770601833901,-500.0,0.00041095,120]
[404826075,1770601833910,-500.0,0.00041095,120]
[404826076,1770601833919,-500.0,0.00041095,120]
[404826077,1770601833929,-500.0,0.00041095,120]
[404826078,1770601833938,-500.0,0.00041095,120]
[404826079,1770601833947,-500.0,0.00041095,120]
[404826080,1770601833956,-500.0,0.00041095,120]
[404826081,1770601833966,-500.0,0.00041095,120]
[404826082,1770601833975,-571.89062339,0.00041095,120]
[404826083,1770601833985,-1500.0,0.00041096,10]
[404826084,1770601833994,-152.0,0.000411,120]
[404826085,1770601834004,-200.0,0.0004129,2]
[404826086,1770601834013,-510.93637167,0.00041644,10]
[404826087,1770601834024,-205.45776283,0.00041736,2]
[404826088,1770601834033,-166.66,0.00041749,30]
[404826089,1770601834043,-152.0,0.00042,120]
[404826090,1770601834054,-152.0,0.000422,120]
[404826091,1770601834064,-150.0,0.00042426,120]
[404826092,1770601834076,-159.22,0.00042466,120]
[404826093,1770601834085,-2046.04007513,0.000425,120]
[404826094,1770601834097,-166.66,0.00042575,30]
[404826095,1770601834108,-168.0,0.00042586,2]
[404826096,1770601834119,-800.0,0.0004274,7]
[404826097,1770601834129,-165.59591036,0.0004274,120]
[404826098,1770601834139,-500.0,0.000429,15]
[404826099,1770601834150,-156.31283783,0.000429,120]
[404826100,1770601834161,-205.45776283,0.00042926,2]
[404826101,1770601834170,-11169.0,0.00042936,30]
[404826102,1770601834181,-1100.0,0.00043,15]
[404826103,1770601834191,-219.34818981,0.00043,2]
[404826104,1770601834202,-152.0,0.00043,120]
[404826105,1770601834212,-1159.89612689,0.00043069,2]
[404826106,1770601834223,-1700.0,0.000431,15]
[404826107,1770601834233,-150.0,0.00043127,120]
[404826108,1770601834244,-2300.0,0.000432,15]
[404826109,1770601834254,-2800.0,0.000433,15]
[404826110,1770601834264,-11169.0,0.00043378,30]
[404826111,1770601834274,-500.0,0.000434,15]
[404826112,1770601834285,-780.43817,0.000434,20]
[404826113,1770601834295,-152.0,0.000434,120]
[404826114,1770601834307,-166.66,0.00043402,30]
[404826115,1770601834316,-500.0,0.000435,15]
[404826116,1770601834326,-678.74760529,0.00043515,120]
[404826117,1770601834337,-500.0,0.000436,15]
[404826118,1770601834347,-300.090938,0.00043633,118]
[404826119,1770601834357,-500.0,0.000437,15]
[404826120,1770601834367,-500.0,0.00043773,10]
[404826121,1770601834376,-1192.0,0.000438,15]
[404826122,1770601834387,-11169.0,0.00043821,30]
[404826123,1770601834397,-1500.0,0.00043854,30]
[404826124,1770601834407,-573.24902188,0.00043873,120]
[404826125,1770601834419,-309.5,0.000439,120]
[404826126,1770601834430,-366.63352077,0.00044,120]
[404826127,1770601834440,-152.0,0.00044,120]
[404826128,1770601834449,-500.0,0.00044109,120]
[404826129,1770601834460,-3324.9366069,0.00044113,15]
[404826130,1770601834469,-205.45776283,0.00044115,2]
[404826131,1770601834478,-1000.0,0.00044128,30]
[404826132,1770601834488,-3324.93660684,0.00044135,15]
[404826133,1770601834498,-3324.93660684,0.00044157,15]
[404826134,1770601834508,-33312.6077,0.00044172,2]
[404826135,1770601834517,-3324.93660684,0.00044179,15]
[404826136,1770601834527,-3324.93660684,0.00044201,15]
[404826137,1770601834536,-168.0,0.00044214,2]
[404826138,1770601834547,-3324.93660684,0.00044222,15]
[404826139,1770601834556,-230.27343017,0.00044236,15]
[404826140,1770601834566,-3324.93660684,0.00044244,15]
[404826141,1770601834575,-3836.3284,0.00044256,120]
[404826142,1770601834586,-10000.0,0.00044256,2]
[404826143,1770601834595,-11169.0,0.00044264,30]
[404826144,1770601834604,-616.0,0.00044265,2]
[404826145,1770601834614,-3485.0,0.00044265,2]
[404826146,1770601834623,-918.0,0.00044265,2]
[404826147,1770601834633,-3256.0,0.00044265,2]
[404826148,1770601834642,-3324.93660684,0.00044266,15]
[404826149,1770601834656,-604.91658786,0.00044287,120]
[404826150,1770601834665,-3324.93660684,0.00044288,15]
[404826151,1770601834674,-7790.0,0.0004429,7]
[404826152,1770601834684,-879.05198376,0.00044306,19]
[404826153,1770601834693,-155.22,0.0004431,120]
[404826154,1770601834703,-3324.93660684,0.0004431,15]
[404826155,1770601834716,-1000.0,0.00044321,10]
[404826156,1770601834726,-183.4948553,0.00044326,15]
[404826157,1770601834735,-500.0,0.00044356,120]
[404826158,1770601834745,-500.0,0.00044356,120]
[404826159,1770601834755,-500.0,0.00044356,120]
[404826160,1770601834765,-520.38053755,0.00044356,120]
[404826161,1770601834775,-500.0,0.00044356,120]
[404826162,1770601834784,-500.0,0.00044356,120]
[404826163,1770601834795,-503.85230897,0.00044356,120]
[404826164,1770601834804,-500.0,0.00044356,120]
[404826165,1770601834813,-512.75904655,0.00044356,120]
[404826166,1770601834823,-500.0,0.00044356,120]
[404826167,1770601834832,-500.0,0.00044356,120]
[404826168,1770601834842,-526.66642879,0.00044356,120]
[404826169,1770601834852,-500.0,0.00044356,120]
[404826170,1770601834861,-502.87540562,0.00044356,120]
[404826171,1770601834871,-535.23280249,0.00044356,120]
[404826172,1770601834880,-500.0,0.00044356,120]
[404826173,1770601834890,-500.0,0.00044356,120]
[404826174,1770601834902,-502.90214748,0.00044356,120]
[404826175,1770601834911,-500.0,0.00044356,120]
[404826176,1770601834923,-532.40741824,0.00044356,120]
[404826177,1770601834933,-500.0,0.00044356,90]
[404826178,1770601834943,-566.45763922,0.00044356,90]
[404826179,1770601834953,-500.0,0.00044356,120]
[404826180,1770601834963,-500.0,0.00044356,120]
[404826181,1770601834973,-537.42018288,0.00044356,120]
[404826182,1770601834982,-513.43522968,0.00044356,120]
[404826183,1770601834994,-500.0,0.00044356,120]
[404826184,1770601835004,-500.0,0.00044356,120]
[404826185,1770601835014,-500.0,0.00044356,120]
[404826186,1770601835023,-501.44993203,0.00044356,120]
[404826187,1770601835033,-503.67142314,0.00044356,120]
[404826188,1770601835043,-522.08187169,0.00044356,120]
[404826189,1770601835053,-500.0,0.00044356,120]
[404826190,1770601835062,-500.0,0.00044356,120]
[404826191,1770601835072,-500.0,0.00044356,120]
[404826192,1770601835080,-586.30785954,0.00044356,120]
[404826193,1770601835090,-410.47947908,0.00044356,120]
[404826194,1770601835099,-517.53749652,0.00044356,120]
[404826195,1770601835109,-500.0,0.00044356,120]
[404826196,1770601835118,-500.0,0.00044356,120]
[404826197,1770601835128,-505.30308566,0.00044356,120]
[404826198,1770601835138,-500.0,0.00044356,120]
[404826199,1770601835147,-500.0,0.00044356,120]
[404826200,1770601835156,-506.09947196,0.00044356,120]
[404826201,1770601835165,-565.79580402,0.00044356,120]
[404826202,1770601835174,-500.0,0.00044356,120]
[404826203,1770601835185,-502.25850263,0.00044356,120]
[404826204,1770601835194,-511.26251365,0.00044356,120]
[404826205,1770601835203,-500.34119019,0.00044356,120]
[404826206,1770601835212,-500.0,0.00044356,120]
[404826207,1770601835221,-500.0,0.00044356,120]
[404826208,1770601835231,-238.692498,0.00044356,120]
[404826209,1770601835241,-500.0,0.00044356,120]
[404826210,1770601835250,-500.0,0.00044356,120]
[404826211,1770601835259,-253.47403352,0.00044356,120]
[404826212,1770601835269,-171.80953342,0.00044356,2]
[404826213,1770601835278,-162.63097546,0.00044356,120]
[404826214,1770601835287,-152.28280645,0.00044356,120]
[404826215,1770601835297,-500.0,0.00044356,120]
[404826216,1770601835306,-500.0,0.00044356,120]
[404826217,1770601835316,-500.0,0.00044356,120]
[404826218,1770601835326,-500.0,0.00044356,120]
[404826219,1770601835335,-319.16300192,0.00044356,120]
[404826220,1770601835345,-518.98273513,0.00044356,120]
[404826221,1770601835355,-500.0,0.00044356,120]
[404826222,1770601835365,-500.0,0.00044356,120]
[404826223,1770601835375,-500.0,0.00044356,120]
[404826224,1770601835384,-500.0,0.00044356,120]
[404826225,1770601835394,-530.33584079,0.00044356,120]
[404826226,1770601835404,-500.0,0.00044356,120]
[404826227,1770601835413,-500.0,0.00044356,120]
[404826228,1770601835423,-500.0,0.00044356,120]
[404826229,1770601835434,-500.0,0.00044356,120]
[404826230,1770601835444,-500.0,0.00044356,120]
[404826231,1770601835456,-500.0,0.00044356,120]
[404826232,1770601835467,-500.0,0.00044356,120]
[404826233,1770601835479,-570.30920391,0.00044356,120]
[404826234,1770601835489,-525.72385141,0.00044356,120]
[404826235,1770601835498,-500.0,0.00044356,120]
[404826236,1770601835508,-500.0,0.00044356,120]
[404826237,1770601835518,-500.0,0.00044356,120]
[404826238,1770601835527,-500.0,0.00044356,120]
[404826239,1770601835537,-500.0,0.00044356,120]
[404826240,1770601835546,-500.0,0.00044356,120]
[404826241,1770601835556,-528.44331281,0.00044356,120]
[404826242,1770601835565,-500.0,0.00044356,120]
[404826243,1770601835575,-500.0,0.00044356,120]
[404826244,1770601835585,-500.0,0.00044356,120]
[404826245,1770601835594,-500.0,0.00044356,120]
[404826246,1770601835604,-500.0,0.00044356,120]
[404826247,1770601835614,-500.0,0.00044356,120]
[404826248,1770601835623,-500.0,0.00044356,120]
[404826249,1770601835634,-500.0,0.00044356,120]
[404826250,1770601835643,-500.0,0.00044356,120]
[404826251,1770601835653,-244.56702662,0.00044356,120]
[404826252,1770601835662,-500.0,0.00044356,120]
[404826253,1770601835671,-500.0,0.00044356,120]
[404826254,1770601835681,-604.87251587,0.00044356,120]
[404826255,1770601835690,-500.0,0.00044356,120]
[404826256,1770601835700,-500.0,0.00044356,120]
[404826257,1770601835711,-500.0,0.00044356,120]
[404826258,1770601835723,-500.0,0.00044356,120]
[404826259,1770601835732,-500.0,0.00044356,120]
[404826260,1770601835742,-500.0,0.00044356,120]